fUST/lending_fUST_20250427
["ID","MTS","AMOUNT","RATE_DAILY","PERIOD"]
[359089236,1745701839666,-400.0,0.00016438,2]
[359089238,1745701839676,-500.0,0.00016438,2]
[359089240,1745701839685,-400.0,0.00016438,2]
[359089242,1745701839696,-400.0,0.00016438,2]
[359089244,1745701839706,-500.0,0.00016438,2]
[359089246,1745701839716,-400.0,0.00016438,2]
[359089248,1745701839727,-400.0,0.00016438,2]
[359089250,1745701839737,-400.0,0.00016438,2]
[359089252,1745701839747,-400.0,0.00016438,2]
[359089254,1745701839757,-500.0,0.00016438,2]
[359089256,1745701839766,-500.0,0.00016438,2]
[359089258,1745701839776,-400.0,0.00016438,2]
[359089260,1745701839786,-400.0,0.00016438,2]
[359089262,1745701839796,-500.0,0.00016438,2]
[359089264,1745701839807,-502.44431671,0.00016438,2]
[359089266,1745701839816,-500.0,0.00016438,2]
[359089268,1745701839826,-400.0,0.00016438,2]
[359089270,1745701839836,-500.0,0.00016438,2]
[359089272,1745701839847,-500.0,0.00016438,2]
[359089274,1745701839856,-529.76614064,0.00016438,2]
[359089276,1745701839866,-400.0,0.00016438,2]
[359089278,1745701839875,-400.0,0.00016438,2]
[359089280,1745701839886,-500.0,0.00016438,2]
[359089282,1745701839895,-500.0,0.00016438,2]
[359089284,1745701839905,-400.0,0.00016438,2]
[359089286,1745701839915,-400.0,0.00016438,2]
[359089288,1745701839925,-400.0,0.00016438,2]
[359089290,1745701839934,-501.43301874,0.00016438,2]
[359089293,1745701839944,-400.0,0.00016438,2]
[359089295,1745701839954,-500.0,0.00016438,2]
[359089296,1745701839964,-400.0,0.00016438,2]
[359089298,1745701839974,-500.0,0.00016438,2]
[359089300,1745701839984,-500.0,0.00016438,2]
[359089302,1745701839993,-500.0,0.00016438,2]
[359089304,1745701840004,-400.0,0.00016438,2]
[359089306,1745701840014,-400.0,0.00016438,2]
[359089308,1745701840025,-500.0,0.00016438,2]
[359089310,1745701840035,-400.0,0.00016438,2]
[359089312,1745701840044,-389.97825734,0.00016438,2]
[359089314,1745701840054,-400.0,0.00016438,2]
[359089316,1745701840064,-500.0,0.00016438,2]
[359089318,1745701840073,-400.0,0.00016438,2]
[359089320,1745701840083,-400.0,0.00016438,2]
[359089322,1745701840092,-400.0,0.00016438,2]
[359089324,1745701840102,-983.46,0.00016438,2]
[359089326,1745701840112,-500.0,0.00016438,2]
[359089328,1745701840121,-505.1590037,0.00016438,2]
[359089330,1745701840131,-500.0,0.00016438,2]
[359089332,1745701840142,-400.0,0.00016438,2]
[359089334,1745701840152,-550.05,0.00016438,2]
[359089336,1745701840162,-400.0,0.00016438,2]
[359089338,1745701840171,-500.0,0.00016438,2]
[359089340,1745701840182,-500.0,0.00016438,2]
[359089342,1745701840193,-500.0,0.00016438,2]
[359089344,1745701840203,-400.0,0.00016438,2]
[359089346,1745701840213,-500.0,0.00016438,2]
[359089380,1745701840471,-500.0,0.00016438,2]
[359089382,1745701840482,-500.0,0.00016438,2]
[359089383,1745701840492,-500.0,0.00016438,2]
[359089384,1745701840502,-150.18128672,0.00016438,2]
[359089385,1745701840511,-400.0,0.00016438,2]
[359089386,1745701840522,-441.43,0.00016438,2]
[359089387,1745701840531,-400.0,0.00016438,2]
[359089388,1745701840541,-400.0,0.00016438,2]
[359089389,1745701840551,-400.0,0.00016438,2]
[359089390,1745701840561,-400.0,0.00016438,2]
[359089391,1745701840571,-500.0,0.00016438,2]
[359089392,1745701840580,-400.0,0.00016438,2]
[359089393,1745701840591,-400.0,0.00016438,2]
[359089394,1745701840601,-400.0,0.00016438,2]
[359089395,1745701840611,-416.6,0.00016438,2]
[359089396,1745701840623,-400.0,0.00016438,2]
[359089397,1745701840632,-400.0,0.00016438,2]
[359089398,1745701840642,-400.0,0.00016438,2]
[359089399,1745701840653,-400.0,0.00016438,2]
[359089400,1745701840663,-400.0,0.00016438,2]
[359089401,1745701840675,-400.0,0.00016438,2]
[359089402,1745701840685,-400.0,0.00016438,2]
[359089403,1745701840695,-420.28,0.00016438,2]
[359089404,1745701840705,-566.9,0.00016438,2]
[359089405,1745701840716,-400.0,0.00016438,2]
[359089407,1745701840726,-400.0,0.00016438,2]
[359089409,1745701840736,-796.45,0.00016438,2]
[359089412,1745701840750,-400.0,0.00016438,2]
[359089414,1745701840759,-400.0,0.00016438,2]
[359089416,1745701840769,-400.0,0.00016438,2]
[359089418,1745701840778,-400.0,0.00016438,2]
[359089420,1745701840788,-500.0,0.00016438,2]
[359089422,1745701840797,-400.0,0.00016438,2]
[359089424,1745701840807,-400.0,0.00016438,2]
[359089426,1745701840817,-400.0,0.00016438,2]
[359089428,1745701840826,-508.78431858,0.00016438,2]
[359089430,1745701840835,-500.0,0.00016438,2]
[359089432,1745701840845,-200.0,0.00016438,2]
[359089434,1745701840856,-508.40776385,0.00016438,2]
[359089436,1745701840866,-400.0,0.00016438,2]
[359089438,1745701840875,-451.77,0.00016438,2]
[359089440,1745701840886,-400.0,0.00016438,2]
[359089442,1745701840897,-500.0,0.00016438,2]
[359089444,1745701840906,-400.0,0.00016438,2]
[359089446,1745701840915,-1361.98,0.00016438,2]
[359089448,1745701840925,-405.6439975,0.00016438,2]
[359089450,1745701840935,-400.0,0.00016438,2]
[359089452,1745701840944,-448.55363414,0.00016438,2]
[359089454,1745701840954,-510.91112369,0.00016438,2]
[359089456,1745701840965,-400.0,0.00016438,2]
[359089458,1745701840974,-410.82917769,0.00016438,2]
[359089460,1745701840984,-500.0,0.00016438,2]
[359089462,1745701840994,-400.0,0.00016438,2]
[359089463,1745701841003,-400.0,0.00016438,2]
[359089465,1745701841013,-400.0,0.00016438,2]
[359089467,1745701841023,-150.19922121,0.00016438,2]
[359089468,1745701841032,-400.0,0.00016438,2]
[359089471,1745701841044,-467.2,0.00016438,2]
[359089472,1745701841055,-400.0,0.00016438,2]
[359089474,1745701841065,-500.0,0.00016438,2]
[359089476,1745701841074,-400.0,0.00016438,2]
[359089478,1745701841085,-432.3,0.00016438,2]
[359089480,1745701841095,-500.0,0.00016438,2]
[359089482,1745701841105,-500.0,0.00016438,2]
[359089484,1745701841115,-953.76,0.00016438,2]
[359089486,1745701841125,-400.0,0.00016438,2]
[359089488,1745701841134,-400.0,0.00016438,2]
[359089490,1745701841143,-400.0,0.00016438,2]
[359089492,1745701841153,-400.0,0.00016438,2]
[359089493,1745701841162,-400.0,0.00016438,2]
[359089495,1745701841172,-400.0,0.00016438,2]
[359089497,1745701841182,-435.53,0.00016438,2]
[359089499,1745701841192,-1115.48,0.00016438,2]
[359089501,1745701841202,-400.0,0.00016438,2]
[359089503,1745701841212,-2006.86,0.00016438,2]
[359089505,1745701841222,-400.0,0.00016438,2]
[359089507,1745701841231,-400.0,0.00016438,2]
[359089509,1745701841241,-400.0,0.00016438,2]
[359089511,1745701841251,-400.0,0.00016438,2]
[359089513,1745701841261,-400.0,0.00016438,2]
[359089515,1745701841270,-502.84535847,0.00016438,2]
[359089517,1745701841280,-400.0,0.00016438,2]
[359089519,1745701841290,-2628.97,0.00016438,2]
[359089521,1745701841300,-1186.47,0.00016438,2]
[359089523,1745701841310,-400.0,0.00016438,2]
[359089525,1745701841320,-500.0,0.00016438,2]
[359089527,1745701841330,-548.61,0.00016438,2]
[359089529,1745701841339,-470.5,0.00016438,2]
[359089531,1745701841348,-400.0,0.00016438,2]
[359089533,1745701841359,-500.0,0.00016438,2]
[359089534,1745701841371,-400.0,0.00016438,2]
[359089536,1745701841380,-400.0,0.00016438,2]
[359089538,1745701841389,-400.0,0.00016438,2]
[359089540,1745701841399,-400.0,0.00016438,2]
[359089542,1745701841408,-400.0,0.00016438,2]
[359089544,1745701841418,-655.42,0.00016438,2]
[359089546,1745701841428,-400.0,0.00016438,2]
[359089548,1745701841437,-515.4030338,0.00016438,2]
[359089550,1745701841447,-400.0,0.00016438,2]
[359089552,1745701841456,-400.0,0.00016438,2]
[359089554,1745701841466,-400.0,0.00016438,2]
[359089555,1745701841475,-400.0,0.00016438,2]
[359089557,1745701841484,-400.0,0.00016438,2]
[359089559,1745701841494,-400.0,0.00016438,2]
[359089561,1745701841503,-2426.17,0.00016438,2]
[359089563,1745701841513,-503.89174384,0.00016438,2]
[359089565,1745701841522,-2049.28,0.00016438,2]
[359089567,1745701841531,-400.0,0.00016438,2]
[359089569,1745701841541,-470.44,0.00016438,2]
[359089571,1745701841550,-778.57,0.00016438,2]
[359089573,1745701841559,-400.0,0.00016438,2]
[359089575,1745701841569,-400.0,0.00016438,2]
[359089577,1745701841578,-400.0,0.00016438,2]
[359089579,1745701841587,-400.0,0.00016438,2]
[359089581,1745701841596,-400.0,0.00016438,2]
[359089582,1745701841605,-400.0,0.00016438,2]
[359089584,1745701841614,-400.0,0.00016438,2]
[359089586,1745701841624,-400.0,0.00016438,2]
[359089588,1745701841634,-1166.87,0.00016438,2]
[359089590,1745701841644,-400.0,0.00016438,2]
[359089592,1745701841653,-428.65,0.00016438,2]
[359089594,1745701841663,-400.0,0.00016438,2]
[359089596,1745701841672,-400.0,0.00016438,2]
[359089598,1745701841681,-1281.44,0.00016438,2]
[359089600,1745701841690,-1443.15,0.00016438,2]
[359089602,1745701841701,-400.0,0.00016438,2]
[359089604,1745701841710,-400.0,0.00016438,2]
[359089606,1745701841720,-400.0,0.00016438,2]
[359089608,1745701841732,-400.0,0.00016438,2]
[359089610,1745701841742,-400.0,0.00016438,2]
[359089612,1745701841751,-543.2,0.00016438,2]
[359089614,1745701841760,-400.0,0.00016438,2]
[359089615,1745701841769,-400.0,0.00016438,2]
[359089617,1745701841779,-408.92,0.00016438,2]
[359089619,1745701841788,-535.12,0.00016438,2]
[359089621,1745701841797,-400.0,0.00016438,2]
[359089623,1745701841807,-400.0,0.00016438,2]
[359089625,1745701841817,-400.0,0.00016438,2]
[359089627,1745701841826,-1417.94,0.00016438,2]
[359089629,1745701841836,-413.57,0.00016438,2]
[359089631,1745701841846,-400.0,0.00016438,2]
[359089633,1745701841855,-400.0,0.00016438,2]
[359089635,1745701841865,-438.06,0.00016438,2]
[359089637,1745701841875,-400.0,0.00016438,2]
[359089638,1745701841884,-583.64,0.00016438,2]
[359089640,1745701841894,-400.0,0.00016438,2]
[359089642,1745701841903,-415.0,0.00016438,2]
[359089644,1745701841913,-513.21,0.00016438,2]
[359089646,1745701841923,-400.0,0.00016438,2]
[359089648,1745701841932,-400.0,0.00016438,2]
[359089650,1745701841941,-400.0,0.00016438,2]
[359089652,1745701841951,-708.16,0.00016438,2]
[359089654,1745701841961,-400.0,0.00016438,2]
[359089655,1745701841970,-400.0,0.00016438,2]
[359089657,1745701841980,-444.13,0.00016438,2]
[359089659,1745701841990,-400.0,0.00016438,2]
[359089661,1745701841999,-400.0,0.00016438,2]
[359089663,1745701842008,-400.0,0.00016438,2]
[359089665,1745701842018,-1281.56,0.00016438,2]
[359089667,1745701842028,-1253.56,0.00016438,2]
[359089669,1745701842038,-483.42,0.00016438,2]
[359089671,1745701842049,-400.0,0.00016438,2]
[359089673,1745701842058,-400.0,0.00016438,2]
[359089675,1745701842068,-400.0,0.00016438,2]
[359089677,1745701842078,-400.0,0.00016438,2]
[359089679,1745701842088,-400.0,0.00016438,2]
[359089681,1745701842097,-500.0,0.00016438,2]
[359089683,1745701842108,-400.0,0.00016438,2]
[359089685,1745701842118,-400.0,0.00016438,2]
[359089687,1745701842127,-400.0,0.00016438,2]
[359089689,1745701842137,-400.0,0.00016438,2]
[359089691,1745701842146,-400.0,0.00016438,2]
[359089693,1745701842156,-400.0,0.00016438,2]
[359089695,1745701842166,-502.1583841,0.00016438,2]
[359089697,1745701842175,-400.0,0.00016438,2]
[359089698,1745701842185,-400.0,0.00016438,2]
[359089700,1745701842194,-573.49,0.00016438,2]
[359089702,1745701842203,-400.0,0.00016438,2]
[359089704,1745701842212,-340.77513207,0.00016438,2]
[359089706,1745701842222,-400.0,0.00016438,2]
[359089708,1745701842232,-400.0,0.00016438,2]
[359089710,1745701842242,-500.0,0.00016438,2]
[359089712,1745701842251,-500.0,0.00016473,2]
[359089714,1745701842260,-500.0,0.00016473,2]
[359089716,1745701842270,-500.69757125,0.00016473,2]
[359089718,1745701842279,-222.92100275,0.00016473,2]
[359089720,1745701842289,-500.0,0.00016473,2]
[359089722,1745701842298,-623.2087604,0.00016473,2]
[359089724,1745701842308,-300.0786064,0.00016473,2]
[359089725,1745701842317,-500.0,0.00016473,2]
[359089727,1745701842327,-5630.872256,0.000167,2]
[359089729,1745701842336,-500.0,0.0001671,2]
[359089731,1745701842346,-500.0,0.0001671,2]
[359089733,1745701842355,-500.0,0.0001671,2]
[359089735,1745701842369,-176.99426606,0.00016712,2]
[359089737,1745701842378,-400.0,0.00016712,2]
[359089739,1745701842388,-400.0,0.00016712,2]
[359089741,1745701842398,-400.0,0.00016712,2]
[359089742,1745701842408,-400.0,0.00016712,2]
[359089744,1745701842418,-400.0,0.00016712,2]
[359089746,1745701842427,-400.0,0.00016712,2]
[359089748,1745701842439,-400.0,0.00016712,2]
[359089750,1745701842448,-400.0,0.00016712,2]
[359089752,1745701842458,-400.0,0.00016712,2]
[359089754,1745701842468,-500.0,0.00016712,2]
[359089756,1745701842478,-500.0,0.00016712,2]
[359089758,1745701842488,-400.0,0.00016712,2]
[359089760,1745701842498,-450.83,0.00016712,2]
[359089762,1745701842507,-400.0,0.00016712,2]
[359089764,1745701842517,-400.0,0.00016712,2]
[359089766,1745701842527,-507.78577039,0.00016712,2]
[359089768,1745701842536,-400.0,0.00016712,2]
[359089770,1745701842546,-400.0,0.00016712,2]
[359089772,1745701842555,-400.0,0.00016712,2]
[359089774,1745701842565,-400.0,0.00016712,2]
[359089776,1745701842574,-400.0,0.00016712,2]
[359089777,1745701842583,-400.0,0.00016712,2]
[359089779,1745701842593,-400.0,0.00016712,2]
[359089781,1745701842602,-400.0,0.00016712,2]
[359089783,1745701842611,-400.0,0.00016712,2]
[359089785,1745701842621,-400.0,0.00016712,2]
[359089787,1745701842631,-400.0,0.00016712,2]
[359089789,1745701842640,-400.0,0.00016712,2]
[359089791,1745701842649,-400.0,0.00016712,2]
[359089793,1745701842659,-400.0,0.00016712,2]
[359089795,1745701842669,-400.0,0.00016712,2]
[359089797,1745701842678,-400.0,0.00016712,2]
[359089799,1745701842688,-400.0,0.00016712,2]
[359089801,1745701842697,-400.0,0.00016712,2]
[359089802,1745701842706,-400.0,0.00016712,2]
[359089804,1745701842716,-400.0,0.00016712,2]
[359089806,1745701842726,-400.0,0.00016712,2]
[359089808,1745701842735,-400.0,0.00016712,2]
[359089810,1745701842745,-238.19407834,0.00016712,2]
[359089812,1745701842754,-983.46,0.00016712,2]
[359089813,1745701842765,-400.0,0.00016712,2]
[359089815,1745701842774,-550.05,0.00016712,2]
[359089817,1745701842784,-400.0,0.00016712,2]
[359089819,1745701842793,-400.0,0.00016712,2]
[359089821,1745701842803,-193.29,0.00016712,2]
[359089822,1745701842812,-441.43,0.00016712,2]
[359089824,1745701842822,-400.0,0.00016712,2]
[359089826,1745701842831,-278.45308468,0.00016712,2]
[359089844,1745701843002,-121.54691532,0.00016712,2]
[359089846,1745701843011,-500.0,0.00016712,2]
[359089848,1745701843020,-201.99808168,0.00016712,2]
[359089851,1745701843032,-198.00191832,0.00016712,2]
[359089853,1745701843042,-400.0,0.00016712,2]
[359089855,1745701843051,-400.0,0.00016712,2]
[359089857,1745701843061,-416.6,0.00016712,2]
[359089859,1745701843070,-257.47891596,0.00016712,2]
[359089861,1745701843079,-400.0,0.00016712,2]
[359089863,1745701843089,-400.0,0.00016712,2]
[359089865,1745701843097,-400.0,0.00016712,2]
[359089867,1745701843108,-262.7045916,0.00016712,2]
[359089869,1745701843119,-137.2954084,0.00016712,2]
[359089871,1745701843128,-400.0,0.00016712,2]
[359089873,1745701843138,-400.0,0.00016712,2]
[359089875,1745701843147,-420.28,0.00016712,2]
[359089877,1745701843157,-566.9,0.00016712,2]
[359089879,1745701843166,-283.75281099,0.00016712,2]
[359089881,1745701843176,-400.0,0.00016712,2]
[359089883,1745701843186,-487.30646729,0.00016712,2]
[359089884,1745701843198,-309.14353271,0.00016712,2]
[359089886,1745701843208,-400.0,0.00016712,2]
[359089888,1745701843217,-400.0,0.00016712,2]
[359089890,1745701843227,-313.53646729,0.00016712,2]
[359089892,1745701843239,-86.46353271,0.00016712,2]
[359089896,1745701843248,-400.0,0.00016712,2]
[359089900,1745701843258,-400.0,0.00016712,2]
[359089901,1745701843267,-400.0,0.00016712,2]
[359089903,1745701843276,-400.0,0.00016712,2]
[359089904,1745701843286,-400.0,0.00016712,2]
[359089905,1745701843295,-451.77,0.00016712,2]
[359089906,1745701843304,-276.32047055,0.00016712,2]
[359089907,1745701843313,-400.0,0.00016712,2]
[359089908,1745701843322,-1361.98,0.00016712,2]
[359089909,1745701843332,-76.26731166,0.00016712,2]
[359089910,1745701843491,-323.73268834,0.00016712,2]
[359089911,1745701843502,-400.0,0.00016712,2]
[359089912,1745701843513,-505.8670936,0.00016712,2]
[359089913,1745701843523,-400.0,0.00016712,2]
[359089914,1745701843532,-400.0,0.00016712,2]
[359089915,1745701843543,-400.0,0.00016712,2]
[359089916,1745701843553,-467.2,0.00016712,2]
[359089917,1745701843562,-400.0,0.00016712,2]
[359089918,1745701843572,-400.0,0.00016712,2]
[359089919,1745701843583,-432.3,0.00016712,2]
[359089920,1745701843594,-953.76,0.00016712,2]
[359089921,1745701843605,-400.0,0.00016712,2]
[359089922,1745701843615,-434.25633036,0.00016712,2]
[359089923,1745701843625,-400.0,0.00016712,2]
[359089924,1745701843635,-500.0,0.00016712,2]
[359089925,1745701843645,-400.0,0.00016712,2]
[359089926,1745701843655,-400.0,0.00016712,2]
[359089927,1745701843664,-435.53,0.00016712,2]
[359089928,1745701843673,-1115.48,0.00016712,2]
[359089929,1745701843683,-400.0,0.00016712,2]
[359089930,1745701843693,-2006.86,0.00016712,2]
[359089931,1745701843703,-400.0,0.00016712,2]
[359089932,1745701843714,-400.0,0.00016712,2]
[359089933,1745701843724,-400.0,0.00016712,2]
[359089934,1745701843733,-400.0,0.00016712,2]
[359089935,1745701843743,-400.0,0.00016712,2]
[359089936,1745701843753,-400.0,0.00016712,2]
[359089938,1745701843762,-2628.97,0.00016712,2]
[359089940,1745701843772,-1186.47,0.00016712,2]
[359089942,1745701843782,-400.0,0.00016712,2]
[359089944,1745701843791,-470.5,0.00016712,2]
[359089946,1745701843800,-400.0,0.00016712,2]
[359089948,1745701843809,-500.0,0.00016712,2]
[359089950,1745701843818,-400.0,0.00016712,2]
[359089951,1745701843828,-106.89948466,0.00016712,2]
[359089952,1745701843841,-293.10051534,0.00016712,2]
[359089953,1745701843851,-400.0,0.00016712,2]
[359089954,1745701843861,-182.15838166,0.00016712,2]
[359089955,1745701843873,-217.84161834,0.00016712,2]
[359089957,1745701843883,-400.0,0.00016712,2]
[359089958,1745701843892,-655.42,0.00016712,2]
[359089961,1745701843902,-400.0,0.00016712,2]
[359089963,1745701843912,-396.33838165,0.00016712,2]
[359089966,1745701843923,-3.66161835,0.00016712,2]
[359089969,1745701843933,-286.23759086,0.00016712,2]
[359089972,1745701843943,-400.0,0.00016712,2]
[359089974,1745701843953,-400.0,0.00016712,2]
[359089976,1745701843962,-400.0,0.00016712,2]
[359089978,1745701843972,-400.0,0.00016712,2]
[359089980,1745701843983,-2426.17,0.00016712,2]
[359089982,1745701843993,-2049.28,0.00016712,2]
[359089984,1745701844003,-400.0,0.00016712,2]
[359089986,1745701844013,-470.44,0.00016712,2]
[359089988,1745701844022,-778.57,0.00016712,2]
[359089990,1745701844031,-231.05279204,0.00016712,2]
[359089992,1745701844040,-400.0,0.00016712,2]
[359089994,1745701844051,-400.0,0.00016712,2]
[359089996,1745701844062,-400.0,0.00016712,2]
[359089998,1745701844071,-400.0,0.00016712,2]
[359090000,1745701844081,-400.0,0.00016712,2]
[359090002,1745701844090,-400.0,0.00016712,2]
[359090004,1745701844100,-400.0,0.00016712,2]
[359090006,1745701844109,-1166.87,0.00016712,2]
[359090008,1745701844119,-323.24100333,0.00016712,2]
[359090010,1745701844131,-76.75899667,0.00016712,2]
[359090012,1745701844140,-428.65,0.00016712,2]
[359090014,1745701844150,-400.0,0.00016712,2]
[359090016,1745701844160,-400.0,0.00016712,2]
[359090018,1745701844170,-1281.44,0.00016712,2]
[359090020,1745701844181,-1443.15,0.00016712,2]
[359090022,1745701844190,-400.0,0.00016712,2]
[359090024,1745701844200,-400.0,0.00016712,2]
[359090026,1745701844209,-400.0,0.00016712,2]
[359090028,1745701844218,-400.0,0.00016712,2]
[359090030,1745701844228,-400.0,0.00016712,2]
[359090032,1745701844237,-543.2,0.00016712,2]
[359090034,1745701844246,-400.0,0.00016712,2]
[359090036,1745701844255,-400.0,0.00016712,2]
[359090038,1745701844266,-408.92,0.00016712,2]
[359090040,1745701844275,-400.0,0.00016712,2]
[359090046,1745701844498,-400.0,0.00016712,2]
[359090047,1745701844509,-400.0,0.00016712,2]
[359090048,1745701844519,-39.50570103,0.00016712,2]
[359090049,1745701844535,-1378.43429897,0.00016712,2]
[359090050,1745701844545,-413.57,0.00016712,2]
[359090051,1745701844555,-387.61260763,0.00016712,2]
[359090052,1745701844589,-12.38739237,0.00016712,2]
[359090053,1745701844599,-289.61260763,0.00016712,2]
[359090101,1745701846795,-351.59094771,0.00016438,2]
[359090107,1745701846851,-48.40905229,0.00016438,2]
[359090109,1745701846861,-400.0,0.00016438,2]
[359090111,1745701846871,-874.28,0.00016438,2]
[359090113,1745701846881,-110.38739237,0.00016712,2]
[359090115,1745701846890,-438.06,0.00016712,2]
[359090117,1745701846901,-400.0,0.00016712,2]
[359090119,1745701846911,-583.64,0.00016712,2]
[359090121,1745701846920,-400.0,0.00016712,2]
[359090123,1745701846931,-415.0,0.00016712,2]
[359090125,1745701846940,-513.21,0.00016712,2]
[359090127,1745701846950,-400.0,0.00016712,2]
[359090129,1745701846960,-400.0,0.00016712,2]
[359090131,1745701846969,-708.16,0.00016712,2]
[359090133,1745701846980,-234.55289522,0.00016712,2]
[359090135,1745701846989,-400.0,0.00016712,2]
[359090137,1745701846999,-444.13,0.00016712,2]
[359090139,1745701847008,-400.0,0.00016712,2]
[359090141,1745701847017,-400.0,0.00016712,2]
[359090143,1745701847027,-400.0,0.00016712,2]
[359090145,1745701847037,-1281.56,0.00016712,2]
[359090147,1745701847046,-1253.56,0.00016712,2]
[359090149,1745701847056,-483.42,0.00016712,2]
[359090151,1745701847065,-400.0,0.00016712,2]
[359090153,1745701847075,-400.0,0.00016712,2]
[359090155,1745701847084,-400.0,0.00016712,2]
[359090157,1745701847094,-400.0,0.00016712,2]
[359090159,1745701847103,-400.0,0.00016712,2]
[359090161,1745701847114,-400.0,0.00016712,2]
[359090163,1745701847124,-400.0,0.00016712,2]
[359090165,1745701847133,-500.0,0.00016712,2]
[359090167,1745701847142,-400.0,0.00016712,2]
[359090169,1745701847152,-500.0,0.00016712,2]
[359090171,1745701847162,-400.0,0.00016712,2]
[359090173,1745701847172,-18.97334712,0.00016712,2]
[359090257,1745702159784,500.07,0.000229,120]
[359090260,1745702185307,500.07,0.000229,120]
[359090269,1745702485084,19034.03380869,0.00013498,2]
[359090275,1745702848135,-856.94710435,0.00013498,2]
[359090288,1745702945089,-2938.5562384,0.00013498,2]
[359090290,1745702967105,-2070.46284856,0.00013498,2]
[359090292,1745702994895,807.46606583,0.00013412,2]
[359090295,1745703031925,-952.0,0.00013411,2]
[359090296,1745703031936,-300.0,0.00013411,2]
[359090297,1745703031946,-1006.99737925,0.00013412,2]
[359090298,1745703031959,-942.89,0.00013412,2]
[359090299,1745703031980,-7242.64655492,0.00013412,2]
[359090300,1745703031991,-371.090395,0.00013699,2]
[359090301,1745703032001,-300.0,0.00014317,2]
[359090302,1745703032012,-300.0,0.00014317,2]
[359090303,1745703032022,-529.002145,0.00014319,2]
[359090305,1745703032033,-500.0,0.00014412,2]
[359090307,1745703032042,-500.0,0.00014412,2]
[359090308,1745703032052,-500.0,0.00014412,2]
[359090309,1745703032062,-476.17835734,0.00014412,2]
[359090338,1745703037858,-500.0,0.00014411,2]
[359090339,1745703037868,-500.0,0.00014411,2]
[359090340,1745703037878,-500.0,0.00014411,2]
[359090341,1745703037888,-500.0,0.00014411,2]
[359090342,1745703037898,-500.0,0.00014411,2]
[359090343,1745703037909,-500.0,0.00014411,2]
[359090344,1745703037920,-500.0,0.00014411,2]
[359090345,1745703037931,-500.0,0.00014411,2]
[359090346,1745703037941,-500.0,0.00014411,2]
[359090347,1745703037952,-500.0,0.00014411,2]
[359090348,1745703037962,-500.0,0.00014411,2]
[359090349,1745703037972,-500.0,0.00014411,2]
[359090350,1745703037982,-500.0,0.00014411,2]
[359090351,1745703037994,-500.0,0.00014411,2]
[359090352,1745703038006,-500.0,0.00014411,2]
[359090353,1745703038017,-500.0,0.00014411,2]
[359090354,1745703038027,-269.33949775,0.00014411,2]
[359090355,1745703038037,-135.3582085,0.00014411,2]
[359090356,1745703038050,-423.9713747,0.00014411,2]
[359090357,1745703038060,-451.66802677,0.00014411,2]
[359090358,1745703038092,-500.0,0.00014411,2]
[359090359,1745703038102,-48.33197323,0.00014411,2]
[359090360,1745703038112,-453.40661133,0.00014411,2]